lending/lending_fUSD_20250122
["ID","MTS","AMOUNT","RATE_DAILY","PERIOD"]
[350033290,1737582651009,-500.0,0.00020173,2]
[350033291,1737582651019,-1045.93,0.00020173,2]
[350033292,1737582651027,-500.0,0.00020173,2]
[350033293,1737582651037,-500.0,0.00020173,2]
[350033294,1737582651046,-500.0,0.00020173,2]
[350033295,1737582651055,-1248.85,0.00020173,2]
[350033296,1737582651064,-836.46,0.00020173,2]
[350033297,1737582651073,-897.56,0.00020173,2]
[350033298,1737582651082,-695.58,0.00020173,2]
[350033299,1737582651091,-500.0,0.00020173,2]
[350033300,1737582651100,-500.0,0.00020173,2]
[350033301,1737582651109,-1264.86,0.00020173,2]
[350033302,1737582651119,-1369.72,0.00020173,2]
[350033303,1737582651128,-500.0,0.00020173,2]
[350033304,1737582651137,-500.0,0.00020173,2]
[350033305,1737582651146,-1428.38,0.00020173,2]
[350033306,1737582651155,-500.0,0.00020173,2]
[350033307,1737582651165,-528.41,0.00020173,2]
[350033308,1737582651174,-500.0,0.00020173,2]
[350033309,1737582651183,-1588.41,0.00020173,2]
[350033310,1737582651192,-500.0,0.00020173,2]
[350033311,1737582651202,-444.42004503,0.00020173,2]
[350033312,1737582651211,-1038.23,0.00020173,2]
[350033313,1737582651220,-597.06,0.00020173,2]
[350033314,1737582651229,-500.0,0.00020173,2]
[350033315,1737582651239,-23900.0,0.00020174,2]
[350033316,1737582651248,-627.14999203,0.00020217,2]
[350033317,1737582651257,-440.9,0.00020272,2]
[350033318,1737582651266,-500.0,0.00020272,2]
[350033319,1737582651276,-500.0,0.00020272,2]
[350033320,1737582651285,-500.0,0.00020272,2]
[350033321,1737582651295,-570.181402,0.00020272,2]
[350033322,1737582651304,-1249.58,0.00020272,2]
[350033323,1737582651314,-500.0,0.00020272,2]
[350033324,1737582651324,-500.0,0.00020272,2]
[350033325,1737582651334,-903.97,0.00020272,2]
[350033326,1737582651344,-500.0,0.00020272,2]
[350033327,1737582651353,-500.0,0.00020272,2]
[350033328,1737582651362,-555.7,0.00020272,2]
[350033329,1737582651372,-578.24,0.00020272,2]
[350033330,1737582651381,-1270.63,0.00020272,2]
[350033331,1737582651391,-500.0,0.00020272,2]
[350033332,1737582651400,-500.0,0.00020272,2]
[350033333,1737582651410,-883.62,0.00020272,2]
[350033334,1737582651419,-500.0,0.00020272,2]
[350033335,1737582651429,-1086.51,0.00020272,2]
[350033336,1737582651438,-500.0,0.00020272,2]
[350033337,1737582651447,-1909.55,0.00020272,2]
[350033338,1737582651457,-755.72,0.00020272,2]
[350033339,1737582651469,-1524.12,0.00020272,2]
[350033340,1737582651478,-1582.46,0.00020272,2]
[350033341,1737582651489,-641.34,0.00020272,2]
[350033342,1737582651499,-238.99433261,0.00020272,2]
[350033343,1737582651508,-599.4,0.00020272,2]
[350033344,1737582651517,-500.0,0.00020272,2]
[350033345,1737582651527,-1599.84,0.00020272,2]
[350033346,1737582651538,-500.0,0.00020272,2]
[350033347,1737582651547,-806.64,0.00020272,2]
[350033348,1737582651557,-406.95581407,0.00020272,2]
[350033349,1737582651567,-500.0,0.00020272,2]
[350033350,1737582651576,-500.0,0.00020272,2]
[350033351,1737582651586,-1166.27,0.00020272,2]
[350033352,1737582651595,-500.0,0.00020273,2]
[350033353,1737582651604,-500.0,0.00020273,2]
[350033354,1737582651614,-365.0587577,0.00020273,2]
[350033355,1737582651623,-500.0,0.00020273,2]
[350033356,1737582651632,-500.0,0.00020273,2]
[350033357,1737582651642,-245.49800396,0.00020273,2]
[350033358,1737582651654,-500.0,0.00020273,2]
[350033359,1737582651664,-775.15,0.00020273,2]
[350033360,1737582651674,-500.0,0.00020273,2]
[350033361,1737582651684,-500.0,0.00020273,2]
[350033362,1737582651694,-500.0,0.00020273,2]
[350033363,1737582651703,-500.0,0.00020273,2]
[350033364,1737582651713,-500.0,0.00020273,2]
[350033365,1737582651725,-500.0,0.00020273,2]
[350033366,1737582651735,-500.0,0.00020273,2]
[350033367,1737582651745,-500.0,0.00020273,2]
[350033368,1737582651754,-500.0,0.00020273,2]
[350033369,1737582651764,-524.78717981,0.00020273,2]
[350033370,1737582651774,-500.0,0.00020273,2]
[350033371,1737582651783,-500.0,0.00020273,2]
[350033372,1737582651794,-500.0,0.00020273,2]
[350033373,1737582651803,-238.78331631,0.00020273,2]
[350033374,1737582651813,-500.0,0.00020273,2]
[350033375,1737582651823,-500.0,0.00020273,2]
[350033376,1737582651833,-500.0,0.00020273,2]
[350033377,1737582651843,-500.0,0.00020273,2]
[350033378,1737582651853,-500.0,0.00020273,2]
[350033379,1737582651863,-500.0,0.00020273,2]
[350033380,1737582651873,-500.0,0.00020273,2]
[350033381,1737582651883,-500.0,0.00020273,2]
[350033382,1737582651892,-500.0,0.00020273,2]
[350033383,1737582651902,-520.79,0.00020273,2]
[350033384,1737582651912,-500.0,0.00020273,2]
[350033385,1737582651922,-522.91424533,0.00020273,2]
[350033386,1737582651932,-544.03,0.00020273,2]
[350033387,1737582651941,-500.0,0.00020273,2]
[350033388,1737582651951,-500.0,0.00020273,2]
[350033389,1737582651960,-473.50478319,0.00020273,2]
[350033390,1737582651970,-500.0,0.00020273,2]
[350033391,1737582651980,-500.0,0.00020273,2]
[350033392,1737582651989,-500.0,0.00020273,2]
[350033393,1737582651999,-500.0,0.00020273,2]
[350033394,1737582652009,-500.0,0.00020273,2]
[350033395,1737582652018,-500.0,0.00020273,2]
[350033396,1737582652028,-500.0,0.00020273,2]
[350033397,1737582652037,-532.05,0.00020273,2]
[350033398,1737582652047,-500.0,0.00020273,2]
[350033399,1737582652056,-500.0,0.00020273,2]
[350033400,1737582652065,-500.0,0.00020273,2]
[350033401,1737582652075,-516.81115305,0.00020273,2]
[350033402,1737582652085,-500.0,0.00020273,2]
[350033403,1737582652094,-500.0,0.00020273,2]
[350033404,1737582652103,-500.0,0.00020273,2]
[350033405,1737582652112,-654.33,0.00020273,2]
[350033406,1737582652121,-500.0,0.00020273,2]
[350033407,1737582652131,-500.0,0.00020273,2]
[350033408,1737582652140,-500.0,0.00020273,2]
[350033409,1737582652150,-500.0,0.00020273,2]
[350033410,1737582652159,-500.0,0.00020273,2]
[350033411,1737582652168,-500.0,0.00020273,2]
[350033412,1737582652178,-500.0,0.00020273,2]
[350033413,1737582652187,-525.48,0.00020273,2]
[350033414,1737582652196,-500.0,0.00020273,2]
[350033415,1737582652205,-535.93,0.00020273,2]
[350033416,1737582652216,-500.0,0.00020273,2]
[350033417,1737582652226,-500.0,0.00020273,2]
[350033418,1737582652235,-500.0,0.00020273,2]
[350033419,1737582652245,-519.07,0.00020273,2]
[350033420,1737582652254,-500.0,0.00020273,2]
[350033421,1737582652263,-404.3968059,0.00020273,2]
[350033422,1737582652272,-500.0,0.00020273,2]
[350033423,1737582652282,-500.0,0.00020273,2]
[350033424,1737582652292,-500.0,0.00020273,2]
[350033425,1737582652302,-500.0,0.00020273,2]
[350033426,1737582652311,-500.0,0.00020273,2]
[350033427,1737582652320,-500.0,0.00020273,2]
[350033428,1737582652330,-500.0,0.00020273,2]
[350033429,1737582652339,-500.0,0.00020273,2]
[350033430,1737582652348,-500.0,0.00020273,2]
[350033431,1737582652357,-500.0,0.00020273,2]
[350033432,1737582652366,-569.19082096,0.00020273,2]
[350033433,1737582652375,-706.77,0.00020273,2]
[350033434,1737582652385,-500.0,0.00020273,2]
[350033435,1737582652394,-500.0,0.00020273,2]
[350033436,1737582652403,-1047.6,0.00020273,2]
[350033437,1737582652412,-500.0,0.00020273,2]
[350033438,1737582652422,-619.66,0.00020273,2]
[350033439,1737582652432,-500.0,0.00020273,2]
[350033440,1737582652441,-500.0,0.00020273,2]
[350033441,1737582652451,-500.0,0.00020273,2]
[350033442,1737582652460,-1755.56,0.00020273,2]
[350033443,1737582652472,-820.66,0.00020273,2]
[350033444,1737582652481,-500.0,0.00020273,2]
[350033445,1737582652494,-500.0,0.00020273,2]
[350033446,1737582652503,-500.0,0.00020273,2]
[350033447,1737582652512,-1880.99,0.00020273,2]
[350033448,1737582652523,-500.0,0.00020273,2]
[350033449,1737582652532,-634.6,0.00020273,2]
[350033450,1737582652542,-636.25,0.00020273,2]
[350033451,1737582652551,-828.27,0.00020273,2]
[350033452,1737582652561,-745.59,0.00020273,2]
[350033453,1737582652570,-500.0,0.00020273,2]
[350033454,1737582652579,-567.17,0.00020273,2]
[350033455,1737582652589,-898.0,0.00020273,2]
[350033456,1737582652599,-500.0,0.00020273,2]
[350033457,1737582652608,-500.0,0.00020273,2]
[350033458,1737582652618,-500.49,0.00020273,2]
[350033459,1737582652627,-1308.24,0.00020273,2]
[350033460,1737582652637,-3586.0,0.00020273,2]
[350033461,1737582652646,-871.05,0.00020273,2]
[350033462,1737582652657,-500.0,0.00020273,2]
[350033463,1737582652667,-2659.05,0.00020273,2]
[350033464,1737582652676,-2076.12,0.00020273,2]
[350033465,1737582652687,-500.0,0.00020273,2]
[350033466,1737582652696,-452.36,0.00020273,2]
[350033467,1737582652706,-500.0,0.00020273,2]
[350033468,1737582652716,-3835.2,0.00020273,2]
[350033469,1737582652727,-500.0,0.00020273,2]
[350033470,1737582652736,-1173.99,0.00020273,2]
[350033471,1737582652745,-500.0,0.00020273,2]
[350033472,1737582652755,-544.33171686,0.00020273,2]
[350033473,1737582652765,-709.47,0.00020273,2]
[350033474,1737582652774,-1365.96,0.00020273,2]
[350033475,1737582652784,-500.0,0.00020273,2]
[350033476,1737582652793,-3081.03,0.00020273,2]
[350033477,1737582652802,-944.76,0.00020273,2]
[350033478,1737582652812,-500.0,0.00020273,2]
[350033479,1737582652821,-500.0,0.00020273,2]
[350033480,1737582652830,-500.0,0.00020273,2]
[350033481,1737582652840,-1120.27,0.00020273,2]
[350033482,1737582652849,-500.0,0.00020273,2]
[350033483,1737582652859,-787.15,0.00020273,2]
[350033484,1737582652868,-905.06,0.00020273,2]
[350033485,1737582652877,-500.0,0.00020273,2]
[350033486,1737582652887,-500.0,0.00020273,2]
[350033487,1737582652896,-500.0,0.00020273,2]
[350033488,1737582652905,-500.0,0.00020273,2]
[350033489,1737582652914,-1803.41,0.00020273,2]
[350033490,1737582652924,-500.0,0.00020273,2]
[350033491,1737582652933,-500.0,0.00020273,2]
[350033492,1737582652943,-349.99,0.00020273,2]
[350033493,1737582652952,-1886.14,0.00020273,2]
[350033494,1737582652961,-500.0,0.00020273,2]
[350033495,1737582652972,-500.0,0.00020273,2]
[350033496,1737582652981,-752.7,0.00020273,2]
[350033497,1737582652991,-500.0,0.00020273,2]
[350033498,1737582653000,-500.0,0.00020273,2]
[350033499,1737582653010,-822.14,0.00020273,2]
[350033500,1737582653019,-895.74,0.00020273,2]
[350033501,1737582653028,-970.83,0.00020273,2]
[350033502,1737582653038,-500.0,0.00020273,2]
[350033503,1737582653047,-487.94365971,0.00020273,2]
[350033504,1737582653056,-1257.37,0.00020273,2]
[350033505,1737582653065,-492.17344108,0.00020273,2]
[350033506,1737582653075,-500.0,0.00020273,2]
[350033507,1737582653084,-500.0,0.00020273,2]
[350033508,1737582653093,-1280.86,0.00020273,2]
[350033509,1737582653102,-500.0,0.00020273,2]
[350033510,1737582653111,-500.0,0.00020273,2]
[350033511,1737582653121,-500.0,0.00020273,2]
[350033512,1737582653131,-500.0,0.00020273,2]
[350033513,1737582653140,-157.99122738,0.00020273,2]
[350033514,1737582653150,-500.0,0.00020273,2]
[350033515,1737582653159,-500.0,0.00020273,2]
[350033516,1737582653169,-500.0,0.00020273,2]
[350033517,1737582653178,-1008.9,0.00020273,2]
[350033518,1737582653187,-500.0,0.00020273,2]
[350033519,1737582653196,-1000.0,0.00020273,2]
[350033520,1737582653206,-500.0,0.00020273,2]
[350033521,1737582653216,-618.74,0.00020273,2]
[350033522,1737582653226,-1101.05,0.00020273,2]
[350033523,1737582653235,-500.0,0.00020273,2]
[350033524,1737582653244,-500.0,0.00020273,2]
[350033525,1737582653254,-500.0,0.00020273,2]
[350033526,1737582653399,-538.17,0.00020273,2]
[350033527,1737582653410,-500.0,0.00020273,2]
[350033528,1737582653419,-1611.43,0.00020273,2]
[350033529,1737582653428,-500.0,0.00020336,2]
[350033530,1737582653437,-500.0,0.00020336,2]
[350033531,1737582653447,-10076.28778513,0.00020383,2]
[350033532,1737582653455,-152.0,0.00020415,3]
[350033533,1737582653465,-622.14,0.00020447,2]
[350033534,1737582653474,-1045.93,0.00020447,2]
[350033535,1737582653485,-500.0,0.00020447,2]
[350033536,1737582653497,-500.0,0.00020447,2]
[350033537,1737582653506,-1248.85,0.00020447,2]
[350033538,1737582653515,-836.46,0.00020447,2]
[350033539,1737582653524,-897.56,0.00020447,2]
[350033540,1737582653535,-695.58,0.00020447,2]
[350033541,1737582653544,-500.0,0.00020447,2]
[350033542,1737582653553,-500.0,0.00020447,2]
[350033543,1737582653563,-1264.86,0.00020447,2]
[350033544,1737582653572,-1369.72,0.00020447,2]
[350033545,1737582653582,-500.0,0.00020447,2]
[350033546,1737582653591,-500.0,0.00020447,2]
[350033547,1737582653600,-1428.38,0.00020447,2]
[350033548,1737582653609,-500.0,0.00020447,2]
[350033549,1737582653619,-528.41,0.00020447,2]
[350033550,1737582653628,-500.0,0.00020447,2]
[350033551,1737582653637,-1588.41,0.00020447,2]
[350033552,1737582653646,-431.81,0.00020447,2]
[350033553,1737582653655,-1038.23,0.00020447,2]
[350033554,1737582653665,-444.42004502,0.00020447,2]
[350033555,1737582653674,-597.06,0.00020447,2]
[350033556,1737582653683,-174.86,0.00020466,2]
[350033557,1737582653692,-627.14999203,0.00020497,2]
[350033558,1737582653702,-500.0,0.00020546,2]
[350033559,1737582653711,-500.0,0.00020546,2]
[350033560,1737582653721,-570.181402,0.00020546,2]
[350033561,1737582653730,-1249.58,0.00020546,2]
[350033562,1737582653739,-903.97,0.00020546,2]
[350033563,1737582653749,-500.0,0.00020546,2]
[350033564,1737582653758,-500.0,0.00020546,2]
[350033565,1737582653767,-555.7,0.00020546,2]
[350033566,1737582653776,-578.24,0.00020546,2]
[350033567,1737582653785,-1270.63,0.00020546,2]
[350033568,1737582653794,-500.0,0.00020546,2]
[350033569,1737582653803,-500.0,0.00020546,2]
[350033570,1737582653813,-883.62,0.00020546,2]
[350033571,1737582653822,-500.0,0.00020546,2]
[350033572,1737582653831,-1086.51,0.00020546,2]
[350033573,1737582653841,-500.0,0.00020546,2]
[350033574,1737582653849,-1909.55,0.00020546,2]
[350033575,1737582653858,-755.72,0.00020546,2]
[350033576,1737582653867,-1524.12,0.00020546,2]
[350033577,1737582653876,-1582.46,0.00020546,2]
[350033578,1737582653885,-641.34,0.00020546,2]
[350033579,1737582653896,-599.4,0.00020546,2]
[350033580,1737582653905,-500.0,0.00020546,2]
[350033581,1737582653914,-1599.84,0.00020546,2]
[350033582,1737582653923,-806.64,0.00020546,2]
[350033583,1737582653932,-500.0,0.00020546,2]
[350033584,1737582653940,-500.0,0.00020546,2]
[350033585,1737582653949,-1166.27,0.00020546,2]
[350033586,1737582653958,-500.0,0.00020547,2]
[350033587,1737582653968,-500.0,0.00020547,2]
[350033588,1737582653978,-500.0,0.00020547,2]
[350033589,1737582653987,-500.0,0.00020547,2]
[350033590,1737582653996,-500.0,0.00020547,2]
[350033591,1737582654006,-775.15,0.00020547,2]
[350033592,1737582654014,-500.0,0.00020547,2]
[350033593,1737582654023,-500.0,0.00020547,2]
[350033594,1737582654032,-500.0,0.00020547,2]
[350033595,1737582654042,-500.0,0.00020547,2]
[350033596,1737582654051,-500.0,0.00020547,2]
[350033597,1737582654059,-500.0,0.00020547,2]
[350033598,1737582654068,-500.0,0.00020547,2]
[350033599,1737582654077,-500.0,0.00020547,2]
[350033600,1737582654086,-500.0,0.00020547,2]
[350033601,1737582654094,-500.0,0.00020547,2]
[350033602,1737582654103,-242.23058958,0.00020547,2]
[350033603,1737582654113,-500.0,0.00020547,2]
[350033604,1737582654122,-500.0,0.00020547,2]
[350033605,1737582654131,-500.0,0.00020547,2]
[350033606,1737582654140,-500.0,0.00020547,2]
[350033607,1737582654148,-500.0,0.00020547,2]
[350033608,1737582654158,-500.0,0.00020547,2]
[350033609,1737582654167,-500.0,0.00020547,2]
[350033610,1737582654176,-500.0,0.00020547,2]
[350033611,1737582654185,-500.0,0.00020547,2]
[350033612,1737582654195,-520.79,0.00020547,2]
[350033613,1737582654204,-500.0,0.00020547,2]
[350033614,1737582654212,-544.03,0.00020547,2]
[350033615,1737582654222,-500.0,0.00020547,2]
[350033616,1737582654231,-500.0,0.00020547,2]
[350033617,1737582654240,-500.0,0.00020547,2]
[350033618,1737582654249,-500.0,0.00020547,2]
[350033619,1737582654258,-500.0,0.00020547,2]
[350033620,1737582654267,-500.0,0.00020547,2]
[350033621,1737582654276,-500.0,0.00020547,2]
[350033622,1737582654285,-532.05,0.00020547,2]
[350033623,1737582654293,-500.0,0.00020547,2]
[350033624,1737582654302,-500.0,0.00020547,2]
[350033625,1737582654311,-500.0,0.00020547,2]
[350033626,1737582654319,-500.0,0.00020547,2]
[350033627,1737582654328,-500.0,0.00020547,2]
[350033628,1737582654337,-500.0,0.00020547,2]
[350033629,1737582654346,-654.33,0.00020547,2]
[350033630,1737582654355,-500.0,0.00020547,2]
[350033631,1737582654364,-500.0,0.00020547,2]
[350033632,1737582654373,-500.0,0.00020547,2]
[350033633,1737582654382,-500.0,0.00020547,2]
[350033634,1737582654391,-500.0,0.00020547,2]
[350033635,1737582654399,-355.32080685,0.00020547,2]
[350033636,1737582654408,-525.48,0.00020547,2]
[350033637,1737582654417,-500.0,0.00020547,2]
[350033638,1737582654426,-535.93,0.00020547,2]
[350033639,1737582654435,-500.0,0.00020547,2]
[350033640,1737582654444,-500.0,0.00020547,2]
[350033641,1737582654454,-500.0,0.00020547,2]
[350033642,1737582654463,-519.07,0.00020547,2]
[350033643,1737582654474,-500.0,0.00020547,2]
[350033644,1737582654487,-500.0,0.00020547,2]
[350033645,1737582654496,-500.0,0.00020547,2]
[350033646,1737582654505,-500.0,0.00020547,2]
[350033647,1737582654514,-500.0,0.00020547,2]
[350033648,1737582654523,-500.0,0.00020547,2]
[350033649,1737582654533,-500.0,0.00020547,2]
[350033650,1737582654542,-500.0,0.00020547,2]
[350033651,1737582654551,-500.0,0.00020547,2]
[350033652,1737582654560,-500.0,0.00020547,2]
[350033653,1737582654571,-500.0,0.00020547,2]
[350033654,1737582654580,-706.77,0.00020547,2]
[350033655,1737582654589,-500.0,0.00020547,2]
[350033656,1737582654598,-500.0,0.00020547,2]
[350033657,1737582654607,-1047.6,0.00020547,2]
[350033658,1737582654617,-500.0,0.00020547,2]
[350033659,1737582654626,-619.66,0.00020547,2]
[350033660,1737582654635,-500.0,0.00020547,2]
[350033661,1737582654644,-500.0,0.00020547,2]
[350033662,1737582654653,-500.0,0.00020547,2]
[350033663,1737582654663,-1755.56,0.00020547,2]
[350033664,1737582654672,-820.66,0.00020547,2]
[350033665,1737582654680,-500.0,0.00020547,2]
[350033666,1737582654690,-500.0,0.00020547,2]
[350033667,1737582654699,-500.0,0.00020547,2]
[350033668,1737582654708,-1880.99,0.00020547,2]
[350033669,1737582654719,-500.0,0.00020547,2]
[350033670,1737582654729,-634.6,0.00020547,2]
[350033671,1737582654738,-636.25,0.00020547,2]
[350033672,1737582654747,-828.27,0.00020547,2]
[350033673,1737582654756,-745.59,0.00020547,2]
[350033674,1737582654765,-500.0,0.00020547,2]
[350033675,1737582654775,-567.17,0.00020547,2]
[350033676,1737582654785,-898.0,0.00020547,2]
[350033677,1737582654794,-500.0,0.00020547,2]
[350033678,1737582654803,-500.0,0.00020547,2]
[350033679,1737582654812,-500.49,0.00020547,2]
[350033680,1737582654822,-1308.24,0.00020547,2]
[350033681,1737582654831,-3586.0,0.00020547,2]
[350033682,1737582654840,-871.05,0.00020547,2]
[350033683,1737582654849,-500.0,0.00020547,2]
[350033684,1737582654859,-2659.05,0.00020547,2]
[350033685,1737582654868,-2076.12,0.00020547,2]
[350033686,1737582654877,-500.0,0.00020547,2]
[350033687,1737582654886,-500.0,0.00020547,2]
[350033688,1737582654895,-3835.2,0.00020547,2]
[350033689,1737582654904,-500.0,0.00020547,2]
[350033690,1737582654914,-1173.99,0.00020547,2]
[350033691,1737582654923,-500.0,0.00020547,2]
[350033692,1737582654932,-709.47,0.00020547,2]
[350033693,1737582654941,-1365.96,0.00020547,2]
[350033694,1737582654951,-500.0,0.00020547,2]
[350033695,1737582654961,-3081.03,0.00020547,2]
[350033696,1737582654971,-944.76,0.00020547,2]
[350033697,1737582654980,-500.0,0.00020547,2]
[350033698,1737582654989,-500.0,0.00020547,2]
[350033699,1737582654998,-500.0,0.00020547,2]
[350033700,1737582655007,-1120.27,0.00020547,2]
[350033701,1737582655016,-500.0,0.00020547,2]
[350033702,1737582655026,-787.15,0.00020547,2]
[350033703,1737582655035,-905.06,0.00020547,2]
[350033704,1737582655044,-500.0,0.00020547,2]
[350033705,1737582655053,-500.0,0.00020547,2]
[350033706,1737582655062,-500.0,0.00020547,2]
[350033707,1737582655071,-500.0,0.00020547,2]
[350033708,1737582655080,-1803.41,0.00020547,2]
[350033709,1737582655089,-500.0,0.00020547,2]
[350033710,1737582655099,-500.0,0.00020547,2]
[350033711,1737582655108,-1886.14,0.00020547,2]
[350033712,1737582655117,-500.0,0.00020547,2]
[350033713,1737582655127,-500.0,0.00020547,2]
[350033714,1737582655136,-752.7,0.00020547,2]
[350033715,1737582655144,-500.0,0.00020547,2]
[350033716,1737582655153,-500.0,0.00020547,2]
[350033717,1737582655162,-822.14,0.00020547,2]
[350033718,1737582655172,-895.74,0.00020547,2]
[350033719,1737582655181,-970.83,0.00020547,2]
[350033720,1737582655190,-500.0,0.00020547,2]
[350033721,1737582655199,-1257.37,0.00020547,2]
[350033722,1737582655208,-500.0,0.00020547,2]
[350033723,1737582655217,-500.0,0.00020547,2]
[350033724,1737582655226,-1280.86,0.00020547,2]
[350033725,1737582655235,-500.0,0.00020547,2]
[350033726,1737582655245,-500.0,0.00020547,2]
[350033727,1737582655254,-500.0,0.00020547,2]
[350033728,1737582655264,-500.0,0.00020547,2]
[350033729,1737582655274,-500.0,0.00020547,2]
[350033730,1737582655283,-1008.9,0.00020547,2]
[350033731,1737582655293,-500.0,0.00020547,2]
[350033732,1737582655302,-1000.0,0.00020547,2]
[350033733,1737582655312,-500.0,0.00020547,2]
[350033734,1737582655321,-618.74,0.00020547,2]
[350033735,1737582655330,-307.63374104,0.00020547,2]
[350033736,1737582655515,-793.41625896,0.00020547,2]
[350033737,1737582655524,-500.0,0.00020547,2]
[350033738,1737582655534,-500.0,0.00020547,2]
[350033739,1737582655543,-500.0,0.00020547,2]
[350033740,1737582655552,-538.17,0.00020547,2]
[350033741,1737582655561,-318.38,0.00020547,2]
[350033742,1737582655570,-1611.43,0.00020547,2]
[350033743,1737582655580,-500.0,0.0002061,2]
[350033744,1737582655589,-500.0,0.0002061,2]
[350033745,1737582655598,-7134.25651159,0.00020636,2]
[350033746,1737582655610,-2942.03127354,0.00020636,2]
[350033747,1737582655619,-153.45,0.00020708,2]
[350033748,1737582655628,-622.14,0.00020721,2]
[350033749,1737582655637,-1045.93,0.00020721,2]
[350033750,1737582655646,-500.0,0.00020721,2]
[350033751,1737582655656,-500.0,0.00020721,2]
[350033752,1737582655665,-1248.85,0.00020721,2]
[350033753,1737582655674,-836.46,0.00020721,2]
[350033754,1737582655683,-897.56,0.00020721,2]
[350033755,1737582655692,-695.58,0.00020721,2]
[350033756,1737582655701,-500.0,0.00020721,2]
[350033757,1737582655710,-500.0,0.00020721,2]
[350033758,1737582655720,-1264.86,0.00020721,2]
[350033759,1737582655728,-1369.72,0.00020721,2]
[350033760,1737582655737,-500.0,0.00020721,2]
[350033761,1737582655747,-500.0,0.00020721,2]
[350033762,1737582655756,-1428.38,0.00020721,2]
[350033763,1737582655765,-500.0,0.00020721,2]
[350033764,1737582655775,-528.41,0.00020721,2]
[350033765,1737582655784,-451.63,0.00020721,2]
[350033766,1737582655794,-1588.41,0.00020721,2]
[350033767,1737582655804,-1038.23,0.00020721,2]
[350033768,1737582655813,-444.42004502,0.00020721,2]
[350033769,1737582655822,-597.06,0.00020721,2]
[350033770,1737582655831,-5430.07868143,0.00020721,2]
[350033771,1737582656141,-829.75750761,0.00018855,2]
[350033772,1737582656159,-1591.15001,0.00018855,2]
[350033773,1737582656170,-952.51368852,0.00018855,2]
[350033775,1737583542303,401.06,0.00010137,2]
[350033784,1737583832268,-550.0,0.00015,2]
[350033785,1737583832278,-1904.0,0.000162,2]
[350033786,1737583832287,-401.06,0.00016813,2]
[350033787,1737583832297,-1134.18,0.00016942,2]
[350033788,1737583832306,-600.0,0.00017,2]
[350033789,1737583832315,-2794.0,0.00018144,2]
[350033790,1737583832324,-500.0,0.00018548,2]
[350033791,1737583832334,-181.17,0.00018555,2]
[350033792,1737583832343,-250.0,0.00018596,2]
[350033793,1737583832352,-300.0,0.00018626,2]
[350033794,1737583832362,-4736.99782066,0.00018627,2]
[350033795,1737583832373,-6911.81400095,0.00018627,2]
[350033796,1737583832487,-12251.18817839,0.00018627,2]
[350033797,1737583832497,-250.0,0.00018642,2]
[350033798,1737583832507,-170.5,0.00018766,2]